[Event "FIDE WCCC Open-12 2024"]
[Site "Montesilvano"]
[Date "2024.11.18"]
[Round "1.32"]
[White "Zhan, Jayden Zihan"]
[Black "Minga-Nagy, Abel Inti"]
[Result "0-1"]
[ECO "B23"]
[WhiteElo "1670"]
[BlackElo "2033"]
[PlyCount "54"]
[EventDate "2024.11.18"]
[EventType "swiss"]
[EventCountry "ITA"]
[TimeControl "5400+30"]

1. e4 {[%emt 0:00:04]} c5 {[%emt 0:00:08]} 2. Nc3 {[%emt 0:00:06]} e6 {[%emt 0:00:15]} 3. g3 {[%emt 0:00:11]} d5 {[%emt 0:01:29]} 4. exd5 {[%emt 0:00:10]} exd5 {[%emt 0:03:14]} 5. Bg2 {[%emt 0:00:21]} Nf6 {[%emt 0:01:08]} 6. d3 {[%emt 0:00:18]} h6 {[%emt 0:00:38]} 7. Bf4 {[%emt 0:01:04]} Be6 {[%emt 0:01:06]} 8. Qe2 {[%emt 0:02:33]} Nc6 {[%emt 0:06:13]} 9. Nf3 {[%emt 0:07:04]} Bd6 {[%emt 0:04:40]} 10. Bh3 {[%emt 0:13:24]} Qe7 {[%emt 0:13:16]} 11. Bxe6 {[%emt 0:03:40]} fxe6 {[%emt 0:02:46]} 12. Nb5 {[%emt 0:13:20]} Bxf4 {[%emt 0:01:00]} 13. gxf4 {[%emt 0:00:19]} a6 {[%emt 0:03:24]} 14. Nh4 {[%emt 0:07:06]} axb5 {[%emt 0:03:15]} 15. Ng6 {[%emt 0:01:05]} Qd6 {[%emt 0:02:13]} 16. Nxh8 {[%emt 0:01:51]} Nd4 {[%emt 0:00:14]} 17. Qd1 {[%emt 0:05:48]} Qxf4 {[%emt 0:00:14]} 18. h3 {[%emt 0:10:05]} Qf5 {[%emt 0:12:41]} 19. c3 {[%emt 0:04:10]} Nf3+ {[%emt 0:01:51]} 20. Kf1 {[%emt 0:02:03]} Ne5 {[%emt 0:00:06]} 21. Rg1 {[%emt 0:17:21]} Nxd3 {[%emt 0:03:27]} 22. Qe2 {[%emt 0:01:31]} Qxh3+ {[%emt 0:00:15]} 23. Rg2 {[%emt 0:00:56]} Nf4 {[%emt 0:03:46]} 24. Qxb5+ {[%emt 0:01:47]} Nd7 {[%emt 0:00:09]} 25. Ke1 {[%emt 0:02:22]} Qxg2 {[%emt 0:00:36]} 26. Qxb7 {[%emt 0:02:07]} Qe4+ {[%emt 0:00:04]} 27. Kd1 {[%emt 0:00:49]} Qd3+ {[%emt 0:00:34]} 0-1

[Event "FIDE WCCC Open-12 2024"]
[Site "Montesilvano"]
[Date "2024.11.18"]
[Round "1.33"]
[White "Batbaatar, Baatar"]
[Black "Kraucenka, Justas"]
[Result "1-0"]
[ECO "C10"]
[WhiteElo "2030"]
[BlackElo "1650"]
[PlyCount "203"]
[EventDate "2024.11.18"]
[EventType "swiss"]
[EventCountry "ITA"]
[TimeControl "5400+30"]

1. e4 {[%emt 0:00:03]} e6 {[%emt 0:00:04]} 2. d4 {[%emt 0:00:04]} d5 {[%emt 0:00:04]} 3. Nc3 {[%emt 0:00:05]} dxe4 {[%emt 0:00:05]} 4. Nxe4 {[%emt 0:00:06]} Nd7 {[%emt 0:00:05]} 5. Nf3 {[%emt 0:02:08]} Ngf6 {[%emt 0:00:07]} 6. Bd3 {[%emt 0:00:51]} Be7 {[%emt 0:00:24]} 7. O-O {[%emt 0:03:29]} O-O {[%emt 0:00:07]} 8. Qe2 {[%emt 0:02:21]} c5 {[%emt 0:00:59]} 9. dxc5 {[%emt 0:03:28]} Bxc5 {[%emt 0:02:38]} 10. Bg5 {[%emt 0:09:19]} Be7 {[%emt 0:06:46]} 11. Rfd1 {[%emt 0:04:08]} h6 {[%emt 0:07:31]} 12. Bxf6 {[%emt 0:05:16]} Bxf6 {[%emt 0:00:31]} 13. Bb5 {[%emt 0:00:53]} Qc7 {[%emt 0:23:02]} 14. Bxd7 {[%emt 0:03:34]} Bxd7 {[%emt 0:00:47]} 15. Nxf6+ {[%emt 0:00:40]} gxf6 {[%emt 0:00:06]} 16. Qd2 {[%emt 0:00:32]} Bc6 {[%emt 0:01:51]} 17. Nd4 {[%emt 0:02:15]} Kg7 {[%emt 0:01:36]} 18. Qe2 {[%emt 0:01:32]} Rg8 {[%emt 0:13:28]} 19. Nxc6 {[%emt 0:02:53]} Qxc6 {[%emt 0:00:48]} 20. Rd3 {[%emt 0:00:09]} Kf8 {[%emt 0:02:15]} 21. g3 {[%emt 0:00:55]} Ke7 {[%emt 0:02:06]} 22. Qd2 {[%emt 0:01:19]} a5 {[%emt 0:11:04]} 23. Rd1 {[%emt 0:00:16]} Rh8 {[%emt 0:14:21]} 24. Rc3 {[%emt 0:00:59]} Rad8 {[%emt 0:03:18]} 25. Rxc6 {[%emt 0:01:24]} Rxd2 {[%emt 0:00:05]} 26. Rxe6+ {[%emt 0:00:05]} fxe6 {[%emt 0:00:08]} 27. Rxd2 {[%emt 0:00:06]} Rc8 {[%emt 0:00:16]} 28. Kf1 {[%emt 0:01:17]} Rc5 {[%emt 0:00:33]} 29. Ke2 {[%emt 0:00:17]} b5 {[%emt 0:00:43]} 30. c3 {[%emt 0:00:34]} a4 {[%emt 0:03:03]} 31. a3 {[%emt 0:00:54]} Re5+ {[%emt 0:01:38]} 32. Kd1 {[%emt 0:01:30]} Rh5 {[%emt 0:00:21]} 33. h4 {[%emt 0:00:36]} Rf5 {[%emt 0:00:35]} 34. f4 {[%emt 0:06:49]} h5 {[%emt 0:01:35]} 35. Ke2 {[%emt 0:05:38]} Rc5 {[%emt 0:00:56]} 36. Kf3 {[%emt 0:01:06]} f5 {[%emt 0:00:41]} 37. Rd4 {[%emt 0:01:57]} Rc7 {[%emt 0:01:33]} 38. Rb4 {[%emt 0:01:25]} Rc5 {[%emt 0:00:06]} 39. c4 {[%emt 0:01:20]} bxc4 {[%emt 0:00:29]} 40. Rxa4 {[%emt 0:02:50]} c3 {[%emt 0:00:06]} 41. bxc3 {[%emt 0:00:48]} Rxc3+ {[%emt 0:00:08]} 42. Kf2 {[%emt 0:01:49]} Rc2+ {[%emt 0:00:04]} 43. Kf3 {[%emt 0:02:59]} Rc3+ {[%emt 0:00:05]} 44. Kg2 {[%emt 0:00:07]} Rc2+ {[%emt 0:00:04]} 45. Kh3 {[%emt 0:00:07]} Ra2 {[%emt 0:00:18]} 46. Ra7+ {[%emt 0:00:24]} Kf6 {[%emt 0:00:32]} 47. a4 {[%emt 0:00:50]} Kg6 {[%emt 0:00:09]} 48. Ra8 {[%emt 0:01:43]} Kg7 {[%emt 0:00:07]} 49. a5 {[%emt 0:01:38]} Kh7 {[%emt 0:00:38]} 50. Ra6 {[%emt 0:06:13]} Kg7 {[%emt 0:03:50]} 51. Rxe6 {[%emt 0:01:23]} Rxa5 {[%emt 0:00:04]} 52. Kg2 {[%emt 0:00:58]} Ra2+ {[%emt 0:00:26]} 53. Kf3 {[%emt 0:00:08]} Ra3+ {[%emt 0:00:05]} 54. Re3 {[%emt 0:00:04]} Ra2 {[%emt 0:00:10]} 55. Rc3 {[%emt 0:00:09]} Rd2 {[%emt 0:00:52]} 56. Ke3 {[%emt 0:00:09]} Rd6 {[%emt 0:01:07]} 57. Rd3 {[%emt 0:01:22]} Re6+ {[%emt 0:02:13]} 58. Kd4 {[%emt 0:00:18]} Re8 {[%emt 0:00:21]} 59. Ra3 {[%emt 0:01:04]} Re6 {[%emt 0:01:17]} 60. Kd5 {[%emt 0:02:24]} Kf6 {[%emt 0:00:10]} 61. Ra8 {[%emt 0:00:06]} Re3 {[%emt 0:00:32]} 62. Rf8+ {[%emt 0:00:50]} Kg6 {[%emt 0:00:37]} 63. Kd4 {[%emt 0:00:29]} Re6 {[%emt 0:00:34]} 64. Rg8+ {[%emt 0:00:18]} Kh6 {[%emt 0:00:28]} 65. Rg5 {[%emt 0:00:10]} Ra6 {[%emt 0:00:27]} 66. Rxf5 {[%emt 0:00:11]} Ra4+ {[%emt 0:00:05]} 67. Ke3 {[%emt 0:00:06]} Ra3+ {[%emt 0:00:04]} 68. Kf2 {[%emt 0:00:06]} Ra2+ {[%emt 0:00:51]} 69. Kf3 {[%emt 0:00:07]} Ra3+ {[%emt 0:00:05]} 70. Kg2 {[%emt 0:00:04]} Ra2+ {[%emt 0:00:07]} 71. Kh3 {[%emt 0:00:21]} Ra3 {[%emt 0:00:06]} 72. Re5 {[%emt 0:00:29]} Rb3 {[%emt 0:00:07]} 73. Kg2 {[%emt 0:00:05]} Rb2+ {[%emt 0:00:29]} 74. Kf3 {[%emt 0:00:16]} Rb3+ {[%emt 0:00:04]} 75. Re3 {[%emt 0:00:05]} Rb4 {[%emt 0:00:04]} 76. f5 {[%emt 0:00:08]} Kg7 {[%emt 0:00:20]} 77. Re4 {[%emt 0:00:06]} Rb3+ {[%emt 0:00:11]} 78. Kf4 {[%emt 0:00:08]} Kf6 {[%emt 0:00:19]} 79. Re6+ {[%emt 0:00:06]} Kf7 {[%emt 0:00:06]} 80. Re3 {[%emt 0:00:08]} Rb1 {[%emt 0:00:53]} 81. Kg5 {[%emt 0:00:06]} Rf1 {[%emt 0:00:10]} 82. Rb3 {[%emt 0:00:27]} Rf2 {[%emt 0:00:31]} 83. Kxh5 {[%emt 0:00:27]} Rxf5+ {[%emt 0:00:07]} 84. Kg4 {[%emt 0:00:14]} Ra5 {[%emt 0:00:12]} 85. h5 {[%emt 0:00:09]} Kg7 {[%emt 0:00:19]} 86. Kh4 {[%emt 0:00:07]} Ra4+ {[%emt 0:01:02]} 87. g4 {[%emt 0:00:07]} Ra5 {[%emt 0:00:06]} 88. Rb7+ {[%emt 0:00:07]} Kg8 {[%emt 0:01:28]} 89. h6 {[%emt 0:00:05]} Ra1 {[%emt 0:00:24]} 90. Kh5 {[%emt 0:00:11]} Ra5+ {[%emt 0:00:15]} 91. g5 {[%emt 0:00:06]} Ra8 {[%emt 0:00:42]} 92. Rb5 {[%emt 0:00:12]} Kh8 {[%emt 0:01:00]} 93. g6 {[%emt 0:00:09]} Rc8 {[%emt 0:00:18]} 94. Rf5 {[%emt 0:00:06]} Ra8 {[%emt 0:01:34]} 95. Rf8+ {[%emt 0:00:07]} Rxf8 {[%emt 0:00:09]} 96. g7+ {[%emt 0:00:04]} Kg8 {[%emt 0:00:05]} 97. Kg6 {[%emt 0:00:07]} Rf6+ {[%emt 0:00:35]} 98. Kxf6 {[%emt 0:00:06]} Kh7 {[%emt 0:00:03]} 99. Kf7 {[%emt 0:00:06]} Kxh6 {[%emt 0:00:08]} 100. g8=Q {[%emt 0:00:07]} Kh5 {[%emt 0:00:03]} 101. Qg3 {[%emt 0:00:07]} Kh6 {[%emt 0:00:08]} 102. Qh4# {[%emt 0:00:03]} 1-0

[Event "FIDE WCCC Open-12 2024"]
[Site "Montesilvano"]
[Date "2024.11.18"]
[Round "1.34"]
[White "Shirinov, Yashar"]
[Black "Marchand, Calix"]
[Result "1/2-1/2"]
[ECO "B40"]
[WhiteElo "1642"]
[BlackElo "2027"]
[PlyCount "80"]
[EventDate "2024.11.18"]
[EventType "swiss"]
[EventCountry "ITA"]
[TimeControl "5400+30"]

1. e4 {[%emt 0:00:07]} c5 {[%emt 0:00:32]} 2. Nf3 {[%emt 0:00:07]} e6 {[%emt 0:00:05]} 3. d3 {[%emt 0:00:25]} Nc6 {[%emt 0:00:09]} 4. g3 {[%emt 0:00:11]} Nf6 {[%emt 0:01:19]} 5. Bg2 {[%emt 0:00:13]} e5 {[%emt 0:00:50]} 6. Nc3 {[%emt 0:00:19]} d6 {[%emt 0:02:03]} 7. O-O {[%emt 0:04:27]} Be6 {[%emt 0:01:20]} 8. Ng5 {[%emt 0:08:20]} Bg4 {[%emt 0:02:38]} 9. f3 {[%emt 0:06:42]} Bd7 {[%emt 0:05:23]} 10. f4 {[%emt 0:05:00]} exf4 {[%emt 0:02:25]} 11. gxf4 {[%emt 0:10:01]} h6 {[%emt 0:01:24]} 12. Nf3 {[%emt 0:00:25]} Bg4 {[%emt 0:02:32]} 13. e5 {[%emt 0:06:31]} dxe5 {[%emt 0:01:35]} 14. fxe5 {[%emt 0:00:11]} Nd7 {[%emt 0:05:29]} 15. Bf4 {[%emt 0:06:48]} g5 {[%emt 0:07:14]} 16. Bg3 {[%emt 0:03:29]} Bg7 {[%emt 0:00:49]} 17. h3 {[%emt 0:08:23]} Bh5 {[%emt 0:04:13]} 18. Qe1 {[%emt 0:02:52]} O-O {[%emt 0:04:05]} 19. e6 {[%emt 0:01:38]} fxe6 {[%emt 0:02:16]} 20. Qxe6+ {[%emt 0:00:11]} Kh8 {[%emt 0:01:48]} 21. Rae1 {[%emt 0:07:52]} Bxf3 {[%emt 0:13:15]} 22. Rxf3 {[%emt 0:00:21]} Rxf3 {[%emt 0:01:39]} 23. Bxf3 {[%emt 0:01:04]} Nd4 {[%emt 0:00:30]} 24. Qd5 {[%emt 0:05:00]} Nxf3+ {[%emt 0:13:38]} 25. Qxf3 {[%emt 0:00:09]} Qb6 {[%emt 0:00:02]} 26. Qf7 {[%emt 0:02:01]} Qxb2 {[%emt 0:09:03]} 27. Qxd7 {[%emt 0:01:12]} Qxc3 {[%emt 0:00:55]} 28. Re8+ {[%emt 0:00:23]} Rxe8 {[%emt 0:00:10]} 29. Qxe8+ {[%emt 0:00:05]} Kh7 {[%emt 0:00:08]} 30. Qe4+ {[%emt 0:00:10]} Kg8 {[%emt 0:00:23]} 31. Qe6+ {[%emt 0:00:08]} Kh7 {[%emt 0:04:06]} 32. Qe4+ {[%emt 0:00:10]} Kg8 {[%emt 0:00:08]} 33. Qe6+ {[%emt 0:00:10]} Kh8 {[%emt 0:00:20]} 34. Qe8+ {[%emt 0:00:07]} Kh7 {[%emt 0:00:54]} 35. Qe4+ {[%emt 0:00:07]} Kg8 {[%emt 0:00:09]} 36. Qe6+ {[%emt 0:00:04]} Kh7 {[%emt 0:00:07]} 37. Qe4+ {[%emt 0:00:06]} Kg8 {[%emt 0:00:08]} 38. Qe6+ {[%emt 0:00:08]} Kh7 {[%emt 0:00:42]} 39. Qe4+ {[%emt 0:00:05]} Kg8 {[%emt 0:00:11]} 40. Qe6+ {[%emt 0:00:21]} Kh7 {[%emt 0:00:18]} 1/2-1/2

[Event "FIDE WCCC Open-12 2024"]
[Site "Montesilvano"]
[Date "2024.11.18"]
[Round "1.35"]
[White "Tatvidze, Davit"]
[Black "Italiani, Luca"]
[Result "1-0"]
[ECO "A24"]
[WhiteElo "2024"]
[BlackElo "1634"]
[PlyCount "59"]
[EventDate "2024.11.18"]
[EventType "swiss"]
[EventCountry "ITA"]
[TimeControl "5400+30"]

1. c4 {[%emt 0:00:03]} e5 {[%emt 0:00:02]} 2. Nc3 {[%emt 0:00:08]} Nf6 {[%emt 0:00:12]} 3. g3 {[%emt 0:00:04]} g6 {[%emt 0:00:16]} 4. Bg2 {[%emt 0:00:03]} Bg7 {[%emt 0:00:15]} 5. Nf3 {[%emt 0:00:05]} d6 {[%emt 0:00:12]} 6. d4 {[%emt 0:01:35]} exd4 {[%emt 0:00:45]} 7. Nxd4 {[%emt 0:00:04]} O-O {[%emt 0:00:39]} 8. O-O {[%emt 0:00:05]} c6 {[%emt 0:01:30]} 9. b3 {[%emt 0:06:11]} a6 {[%emt 0:02:11]} 10. Qd2 {[%emt 0:02:43]} c5 {[%emt 0:01:47]} 11. Nc2 {[%emt 0:00:11]} Re8 {[%emt 0:01:50]} 12. Bb2 {[%emt 0:04:35]} Nc6 {[%emt 0:01:03]} 13. Rad1 {[%emt 0:00:56]} Bf8 {[%emt 0:00:50]} 14. Ne3 {[%emt 0:06:25]} Nd4 {[%emt 0:02:11]} 15. Na4 {[%emt 0:01:59]} Nc6 {[%emt 0:04:07]} 16. Nxc5 {[%emt 0:00:47]} dxc5 {[%emt 0:05:01]} 17. Qxd8 {[%emt 0:00:05]} Rxd8 {[%emt 0:01:24]} 18. Bxf6 {[%emt 0:01:01]} Re8 {[%emt 0:01:03]} 19. Rfe1 {[%emt 0:01:54]} Bh6 {[%emt 0:00:42]} 20. Nd5 {[%emt 0:01:51]} Rb8 {[%emt 0:03:42]} 21. Nc7 {[%emt 0:01:27]} Rf8 {[%emt 0:00:14]} 22. Bxc6 {[%emt 0:01:40]} bxc6 {[%emt 0:00:27]} 23. Be7 {[%emt 0:00:11]} Rb7 {[%emt 0:02:09]} 24. Bxf8 {[%emt 0:00:23]} Bxf8 {[%emt 0:01:14]} 25. Ne8 {[%emt 0:00:07]} Bh3 {[%emt 0:01:02]} 26. Rd8 {[%emt 0:01:57]} f5 {[%emt 0:01:05]} 27. Red1 {[%emt 0:02:08]} g5 {[%emt 0:00:46]} 28. R8d7 {[%emt 0:00:16]} Rb8 {[%emt 0:01:44]} 29. Nf6+ {[%emt 0:00:07]} Kh8 {[%emt 0:00:32]} 30. Rxh7# {[%emt 0:00:35]} 1-0

[Event "FIDE WCCC Open-12 2024"]
[Site "Montesilvano"]
[Date "2024.11.18"]
[Round "1.36"]
[White "Mintz, Nathan"]
[Black "Vaidyanathan, Adithya"]
[Result "0-1"]
[ECO "A37"]
[WhiteElo "1633"]
[BlackElo "2018"]
[PlyCount "114"]
[EventDate "2024.11.18"]
[EventType "swiss"]
[EventCountry "ITA"]
[TimeControl "5400+30"]

1. c4 {[%emt 0:00:09]} c5 {[%emt 0:00:01]} 2. Nc3 {[%emt 0:00:14]} g6 {[%emt 0:00:05]} 3. g3 {[%emt 0:00:07]} Bg7 {[%emt 0:00:04]} 4. Bg2 {[%emt 0:00:14]} Nc6 {[%emt 0:00:01]} 5. d3 {[%emt 0:00:31]} e5 {[%emt 0:00:06]} 6. Nf3 {[%emt 0:00:22]} Nge7 {[%emt 0:00:17]} 7. O-O {[%emt 0:00:26]} O-O {[%emt 0:00:07]} 8. Bg5 {[%emt 0:01:14]} h6 {[%emt 0:00:39]} 9. Bxe7 {[%emt 0:00:39]} Nxe7 {[%emt 0:00:03]} 10. a3 {[%emt 0:00:59]} f5 {[%emt 0:02:41]} 11. Qd2 {[%emt 0:03:16]} Re8 {[%emt 0:20:31]} 12. Ne1 {[%emt 0:05:23]} Nc6 {[%emt 0:02:51]} 13. Nc2 {[%emt 0:02:52]} a5 {[%emt 0:01:31]} 14. Rab1 {[%emt 0:09:39]} a4 {[%emt 0:04:21]} 15. b4 {[%emt 0:06:14]} Nd4 {[%emt 0:06:09]} 16. Nxd4 {[%emt 0:01:37]} cxd4 {[%emt 0:00:26]} 17. Nd5 {[%emt 0:02:10]} Kh7 {[%emt 0:03:09]} 18. c5 {[%emt 0:06:24]} d6 {[%emt 0:14:01]} 19. Nb6 {[%emt 0:03:44]} Ra7 {[%emt 0:00:08]} 20. Qc2 {[%emt 0:12:14]} dxc5 {[%emt 0:03:26]} 21. Qxc5 {[%emt 0:03:12]} Be6 {[%emt 0:14:39]} 22. Rfc1 {[%emt 0:10:50]} Ra6 {[%emt 0:01:31]} 23. Nd5 {[%emt 0:07:31]} Rc6 {[%emt 0:00:28]} 24. Qb5 {[%emt 0:01:00]} Qc8 {[%emt 0:00:42]} 25. Nf6+ {[%emt 0:08:14]} Bxf6 {[%emt 0:00:05]} 26. Bxc6 {[%emt 0:00:16]} bxc6 {[%emt 0:00:03]} 27. Rxc6 {[%emt 0:01:01]} Qd8 {[%emt 0:04:58]} 28. Qa6 {[%emt 0:02:01]} Qd7 {[%emt 0:09:21]} 29. Rbc1 {[%emt 0:01:50]} Bd8 {[%emt 0:01:14]} 30. Rd6 {[%emt 0:01:12]} Qe7 {[%emt 0:03:33]} 31. Rcc6 {[%emt 0:01:29]} Bd7 {[%emt 0:01:30]} 32. Rc5 {[%emt 0:01:10]} Qf7 {[%emt 0:04:30]} 33. Rcd5 {[%emt 0:01:22]} Re7 {[%emt 0:00:22]} 34. Rc5 {[%emt 0:02:56]} Kg7 {[%emt 0:01:06]} 35. Qa8 {[%emt 0:01:21]} Re8 {[%emt 0:00:44]} 36. Rcd5 {[%emt 0:01:21]} Be7 {[%emt 0:00:14]} 37. Qa7 {[%emt 0:01:08]} Bxd6 {[%emt 0:00:01]} 38. Rxd6 {[%emt 0:00:19]} Re7 {[%emt 0:00:24]} 39. Qc5 {[%emt 0:00:18]} Re6 {[%emt 0:02:43]} 40. Rd5 {[%emt 0:00:54]} Rc6 {[%emt 0:00:12]} 41. Rxd7 {[%emt 0:01:25]} Qxd7 {[%emt 0:00:01]} 42. Qxe5+ {[%emt 0:00:11]} Kh7 {[%emt 0:00:57]} 43. Kg2 {[%emt 0:01:00]} Re6 {[%emt 0:00:09]} 44. Qc5 {[%emt 0:00:21]} Qc6+ {[%emt 0:00:25]} 45. Qxc6 {[%emt 0:00:36]} Rxc6 {[%emt 0:00:01]} 46. Kf3 {[%emt 0:00:22]} Rc3 {[%emt 0:00:01]} 47. Kf4 {[%emt 0:00:27]} Rxa3 {[%emt 0:00:02]} 48. Ke5 {[%emt 0:00:10]} Rb3 {[%emt 0:00:01]} 49. Kxd4 {[%emt 0:00:33]} Rxb4+ {[%emt 0:00:01]} 50. Kc3 {[%emt 0:00:29]} Rb8 {[%emt 0:00:01]} 51. d4 {[%emt 0:00:45]} a3 {[%emt 0:00:01]} 52. d5 {[%emt 0:00:21]} a2 {[%emt 0:00:01]} 53. d6 {[%emt 0:00:12]} a1=Q+ {[%emt 0:00:06]} 54. Kc4 {[%emt 0:00:22]} Qd1 {[%emt 0:00:11]} 55. Kc5 {[%emt 0:00:22]} Rc8+ {[%emt 0:00:07]} 56. Kb5 {[%emt 0:00:19]} Qb1+ {[%emt 0:07:28]} 57. Ka5 {[%emt 0:00:43]} Ra8# {[%emt 0:00:00]} 0-1

[Event "FIDE WCCC Open-12 2024"]
[Site "Montesilvano"]
[Date "2024.11.18"]
[Round "1.37"]
[White "Elhusseiny, Eyad"]
[Black "Farzaleev, Daniyar"]
[Result "1-0"]
[ECO "E62"]
[WhiteElo "2017"]
[BlackElo "1622"]
[PlyCount "69"]
[EventDate "2024.11.18"]
[EventType "swiss"]
[EventCountry "ITA"]
[TimeControl "5400+30"]

1. Nf3 {[%emt 0:00:04]} Nf6 {[%emt 0:00:09]} 2. c4 {[%emt 0:00:10]} g6 {[%emt 1:31:21]} 3. d4 {[%emt 0:01:12]} Bg7 {[%emt 0:00:00]} 4. g3 {[%emt 0:00:03]} O-O {[%emt 0:00:00]} 5. Bg2 {[%emt 0:00:03]} d6 {[%emt 0:00:00]} 6. O-O {[%emt 0:00:09]} Nc6 {[%emt 0:00:00]} 7. Nc3 {[%emt 0:00:20]} e5 {[%emt 0:00:00]} 8. dxe5 {[%emt 0:00:33]} dxe5 {[%emt 0:00:00]} 9. Bg5 {[%emt 0:00:22]} Be6 {[%emt 0:00:00]} 10. Qa4 {[%emt 0:00:29]} h6 {[%emt 0:00:00]} 11. Rad1 {[%emt 0:02:47]} Qe8 {[%emt 0:00:00]} 12. Bxf6 {[%emt 0:14:12]} Bxf6 {[%emt 0:00:00]} 13. Nd2 {[%emt 0:02:39]} Nd4 {[%emt 0:00:00]} 14. Qb4 {[%emt 0:17:47]} Rb8 {[%emt 0:00:00]} 15. Qa5 {[%emt 0:01:55]} Qe7 {[%emt 0:00:00]} 16. e3 {[%emt 0:07:14]} Nc6 {[%emt 0:00:00]} 17. Qa4 {[%emt 0:00:26]} Qb4 {[%emt 0:00:00]} 18. Bxc6 {[%emt 0:02:44]} bxc6 {[%emt 0:00:00]} 19. Qxc6 {[%emt 0:00:33]} Qxb2 {[%emt 0:00:00]} 20. Nde4 {[%emt 0:01:44]} Bg7 {[%emt 0:00:00]} 21. Rb1 {[%emt 0:10:01]} Qc2 {[%emt 0:00:00]} 22. Rbc1 {[%emt 0:01:47]} Qd3 {[%emt 0:00:00]} 23. c5 {[%emt 0:05:56]} Qd7 {[%emt 0:00:00]} 24. Qxd7 {[%emt 0:00:24]} Bxd7 {[%emt 0:00:00]} 25. Nd5 {[%emt 0:02:35]} Bb5 {[%emt 0:00:00]} 26. Rfd1 {[%emt 0:01:07]} f5 {[%emt 0:00:00]} 27. Nec3 {[%emt 0:00:35]} c6 {[%emt 0:00:00]} 28. Nxb5 {[%emt 0:01:43]} Rxb5 {[%emt 0:00:00]} 29. Ne7+ {[%emt 0:00:27]} Kh7 {[%emt 0:00:00]} 30. Nxc6 {[%emt 0:00:17]} Rf7 {[%emt 0:00:00]} 31. Nd8 {[%emt 0:00:27]} Rc7 {[%emt 0:00:00]} 32. c6 {[%emt 0:01:19]} Rb6 {[%emt 0:00:00]} 33. Rd7 {[%emt 0:04:18]} Rxd7 {[%emt 0:00:00]} 34. cxd7 {[%emt 0:00:07]} Rd6 {[%emt 0:00:00]} 35. Rc7 {[%emt 0:00:06]} 1-0

[Event "FIDE WCCC Open-12 2024"]
[Site "Montesilvano"]
[Date "2024.11.18"]
[Round "1.38"]
[White "Anuzis, Finas"]
[Black "Sason, Noam"]
[Result "0-1"]
[ECO "D90"]
[WhiteElo "1614"]
[BlackElo "2017"]
[PlyCount "86"]
[EventDate "2024.11.18"]
[EventType "swiss"]
[EventCountry "ITA"]
[TimeControl "5400+30"]

1. d4 {[%emt 0:00:02]} Nf6 {[%emt 0:00:09]} 2. Nf3 {[%emt 0:00:09]} c5 {[%emt 0:00:18]} 3. c3 {[%emt 0:00:27]} cxd4 {[%emt 0:01:56]} 4. cxd4 {[%emt 0:00:46]} g6 {[%emt 0:01:07]} 5. Bf4 {[%emt 0:01:35]} Bg7 {[%emt 0:01:45]} 6. e3 {[%emt 0:01:07]} O-O {[%emt 0:02:59]} 7. Be2 {[%emt 0:02:02]} Nc6 {[%emt 0:02:31]} 8. Nc3 {[%emt 0:03:36]} d5 {[%emt 0:02:08]} 9. h3 {[%emt 0:02:46]} Ne4 {[%emt 0:01:02]} 10. O-O {[%emt 0:03:45]} Nxc3 {[%emt 0:05:27]} 11. bxc3 {[%emt 0:01:24]} Na5 {[%emt 0:03:23]} 12. Be5 {[%emt 0:10:09]} Bf5 {[%emt 0:03:43]} 13. Bxg7 {[%emt 0:01:43]} Kxg7 {[%emt 0:00:04]} 14. Bd3 {[%emt 0:02:01]} Bxd3 {[%emt 0:02:16]} 15. Qxd3 {[%emt 0:00:44]} Rc8 {[%emt 0:01:22]} 16. Rfc1 {[%emt 0:06:47]} Qd6 {[%emt 0:04:00]} 17. Qb5 {[%emt 0:04:54]} b6 {[%emt 0:03:30]} 18. Qb4 {[%emt 0:01:08]} Nc4 {[%emt 0:02:19]} 19. Qxd6 {[%emt 0:01:12]} Nxd6 {[%emt 0:00:07]} 20. Nd2 {[%emt 0:01:02]} Rc7 {[%emt 0:04:15]} 21. Rc2 {[%emt 0:03:11]} Rfc8 {[%emt 0:04:02]} 22. Rac1 {[%emt 0:02:46]} b5 {[%emt 0:09:32]} 23. Nb3 {[%emt 0:01:47]} Nb7 {[%emt 0:00:25]} 24. Kf1 {[%emt 0:00:55]} f6 {[%emt 0:04:35]} 25. Ke2 {[%emt 0:02:22]} Kf7 {[%emt 0:01:26]} 26. Kd3 {[%emt 0:01:42]} e5 {[%emt 0:01:52]} 27. f3 {[%emt 0:01:42]} a5 {[%emt 0:00:45]} 28. Nd2 {[%emt 0:02:31]} Ke6 {[%emt 0:02:16]} 29. e4 {[%emt 0:02:06]} dxe4+ {[%emt 0:03:24]} 30. fxe4 {[%emt 0:03:35]} Rd7 {[%emt 0:01:48]} 31. d5+ {[%emt 0:00:55]} Kd6 {[%emt 0:00:08]} 32. c4 {[%emt 0:01:04]} Nc5+ {[%emt 0:01:04]} 33. Ke3 {[%emt 0:02:22]} b4 {[%emt 0:00:20]} 34. Nb3 {[%emt 0:00:49]} a4 {[%emt 0:03:03]} 35. Na5 {[%emt 0:05:04]} Ra8 {[%emt 0:00:28]} 36. Nc6 {[%emt 0:00:26]} b3 {[%emt 0:01:39]} 37. axb3 {[%emt 0:02:16]} axb3 {[%emt 0:00:22]} 38. Rb2 {[%emt 0:00:30]} Rb7 {[%emt 0:00:24]} 39. Rcb1 {[%emt 0:01:25]} Ra2 {[%emt 0:03:37]} 40. Rxa2 {[%emt 0:01:04]} bxa2 {[%emt 0:00:07]} 41. Ra1 {[%emt 0:00:09]} Rb2 {[%emt 0:00:39]} 42. Nb4 {[%emt 0:02:07]} Rxb4 {[%emt 0:01:51]} 43. Rxa2 {[%emt 0:00:33]} Rxc4 {[%emt 0:23:52]} 0-1